[Event "Dvorkovich Memorial Rapid 2018"]
[Site "Taganrog"]
[Date "2018.01.13"]
[Round "4.28"]
[White "Tyurin, Artem"]
[Black "Nazaretyan, Tigran"]
[Result "0-1"]
[ECO "B59"]
[WhiteElo "1820"]
[BlackElo "2285"]
[Annotator "NA"]
[PlyCount "138"]
[EventDate "2018.??.??"]
[EventType "swiss"]
[EventCountry "RUS"]
[SourceTitle "playchess.com"]
[Source "ChessBase"]
[SourceQuality "1"]
[TimeControl "900+10"]

1. e4 {[%emt 0:00:00]} c5 {[%emt 0:00:00]} 2. Nf3 {[%emt 0:00:00]} Nc6 {[%emt 0:00:00]} 3. d4 {[%emt 0:00:00]} cxd4 {[%emt 0:00:01]} 4. Nxd4 {[%emt 0:00:00]} Nf6 {[%emt 0:00:01]} 5. Nc3 {[%emt 0:00:00]} d6 {[%emt 0:00:15]} 6. f3 {[%emt 0:02:14]} e5 {[%emt 0:00:00]} 7. Nb3 {[%emt 0:00:17]} Be7 {[%emt 0:00:05]} 8. Be2 {[%emt 0:00:12]} a5 {[%emt 0:00:17]} 9. a4 {[%emt 0:00:15]} O-O {[%emt 0:00:11]} 10. Be3 {[%emt 0:00:22]} Nb4 {[%emt 0:00:18]} 11. O-O {[%emt 0:00:04]} d5 {[%emt 0:00:56]} 12. exd5 {[%emt 0:00:40]} Bf5 {[%emt 0:00:30]} 13. Rc1 {[%emt 0:01:04]} Nfxd5 {[%emt 0:00:36]} 14. Nxd5 {[%emt 0:00:19]} Nxd5 {[%emt 0:00:04]} 15. Bd2 {[%emt 0:00:42]} Qb6+ {[%emt 0:01:05]} 16. Kh1 {[%emt 0:00:15]} Ne3 {[%emt 0:00:45]} 17. Bxe3 {[%emt 0:00:21]} Qxe3 {[%emt 0:00:02]} 18. Bb5 {[%emt 0:01:50]} Rfd8 {[%emt 0:00:52]} 19. Qe1 {[%emt 0:01:56]} Qxe1 {[%emt 0:01:21]} 20. Rfxe1 {[%emt 0:00:22]} Bg5 {[%emt 0:00:14]} 21. Ra1 {[%emt 0:00:27]} Bxc2 {[%emt 0:00:38]} 22. Nc5 {[%emt 0:00:00]} Rd2 {[%emt 0:04:18]} 23. Rxe5 {[%emt 0:00:52]} Bf6 {[%emt 0:00:34]} 24. Re2 {[%emt 0:01:03]} Rxe2 {[%emt 0:00:24]} 25. Bxe2 {[%emt 0:00:14]} b6 {[%emt 0:01:22]} 26. Rc1 {[%emt 0:00:51]} Bf5 {[%emt 0:00:25]} 27. Ne4 {[%emt 0:00:34]} Bxb2 {[%emt 0:00:17]} 28. Rc7 {[%emt 0:00:30]} Rc8 {[%emt 0:00:22]} 29. Rxc8+ {[%emt 0:00:28]} Bxc8 {[%emt 0:00:00]} 30. Bc4 {[%emt 0:00:27]} Bd7 {[%emt 0:00:17]} 31. Bb3 {[%emt 0:00:43]} Be5 {[%emt 0:00:33]} 32. Kg1 {[%emt 0:00:39]} b5 {[%emt 0:00:03]} 33. axb5 {[%emt 0:00:35]} Bxb5 {[%emt 0:00:07]} 34. Kf2 {[%emt 0:00:13]} a4 {[%emt 0:00:08]} 35. Ba2 {[%emt 0:00:00]} h6 {[%emt 0:00:28]} 36. g3 {[%emt 0:00:27]} a3 {[%emt 0:00:06]} 37. Ke3 {[%emt 0:00:07]} Kf8 {[%emt 0:00:29]} 38. f4 {[%emt 0:00:02]} Bc7 {[%emt 0:00:48]} 39. Kd4 {[%emt 0:00:23]} Bb6+ {[%emt 0:00:14]} 40. Kc3 {[%emt 0:00:05]} Bg1 {[%emt 0:00:07]} 41. h3 {[%emt 0:00:11]} Bf1 {[%emt 0:00:16]} 42. h4 {[%emt 0:00:28]} Bh2 {[%emt 0:00:52]} 43. Kb3 {[%emt 0:00:57]} f5 {[%emt 0:00:26]} 44. Nd6 {[%emt 0:00:21]} Bh3 {[%emt 0:00:19]} 45. Kxa3 {[%emt 0:00:31]} h5 {[%emt 0:00:33]} 46. Bb1 {[%emt 0:00:18]} g6 {[%emt 0:00:00]} 47. Kb3 {[%emt 0:00:01]} Bxg3 {[%emt 0:00:00]} 48. Kc4 {[%emt 0:00:05]} Bxf4 {[%emt 0:00:01]} 49. Kd5 {[%emt 0:00:11]} Bg3 {[%emt 0:00:23]} 50. Ke6 {[%emt 0:00:12]} Kg7 {[%emt 0:00:32]} 51. Nxf5+ {[%emt 0:00:20]} gxf5 {[%emt 0:00:13]} 52. Bxf5 {[%emt 0:00:11]} Bf1 {[%emt 0:00:23]} 53. Be4 {[%emt 0:00:13]} Bxh4 {[%emt 0:00:00]} 54. Kf5 {[%emt 0:00:02]} Bh3+ {[%emt 0:00:13]} 55. Kf4 {[%emt 0:00:00]} Kf6 {[%emt 0:00:09]} 56. Bf3 {[%emt 0:00:06]} Kg6 {[%emt 0:00:05]} 57. Be4+ {[%emt 0:00:05]} Kh6 {[%emt 0:00:01]} 58. Bf3 {[%emt 0:00:01]} Be6 {[%emt 0:00:05]} 59. Be4 {[%emt 0:00:09]} Bg4 {[%emt 0:00:04]} 60. Bf3 {[%emt 0:00:00]} Bc8 {[%emt 0:00:05]} 61. Bd5 {[%emt 0:00:34]} Be1 {[%emt 0:00:02]} 62. Bf3 {[%emt 0:00:07]} h4 {[%emt 0:00:18]} 63. Bg4 {[%emt 0:00:00]} Bg3+ {[%emt 0:00:09]} 64. Kf3 {[%emt 0:00:06]} Bb7+ {[%emt 0:00:00]} 65. Ke3 {[%emt 0:00:08]} Bg2 {[%emt 0:00:17]} 66. Bf3 {[%emt 0:00:04]} h3 {[%emt 0:00:02]} 67. Ke2 {[%emt 0:00:12]} Kg6 {[%emt 0:00:05]} 68. Ke3 {[%emt 0:00:06]} Kf5 {[%emt 0:00:03]} 69. Ke2 {[%emt 0:00:09]} Kf4 {[%emt 0:00:02]} 0-1

[Event "Dvorkovich Memorial Rapid 2018"]
[Site "Taganrog"]
[Date "2018.01.13"]
[Round "6.22"]
[White "Ivlev, Aleksey"]
[Black "Potapenko, Denis"]
[Result "1-0"]
[ECO "D85"]
[WhiteElo "2300"]
[BlackElo "2158"]
[Annotator "NA"]
[PlyCount "61"]
[EventDate "2018.??.??"]
[EventType "swiss"]
[EventCountry "RUS"]
[SourceTitle "playchess.com"]
[Source "ChessBase"]
[SourceQuality "1"]
[TimeControl "900+10"]

1. d4 {[%emt 0:00:00]} Nf6 {[%emt 0:00:05]} 2. c4 {[%emt 0:00:00]} g6 {[%emt 0:00:00]} 3. Nc3 {[%emt 0:00:00]} d5 {[%emt 0:00:09]} 4. cxd5 {[%emt 0:00:00]} Nxd5 {[%emt 0:00:00]} 5. e4 {[%emt 0:00:00]} Nxc3 {[%emt 0:00:00]} 6. bxc3 {[%emt 0:00:00]} Bg7 {[%emt 0:00:07]} 7. Nf3 {[%emt 0:00:00]} c5 {[%emt 0:00:03]} 8. Rb1 {[%emt 0:00:00]} O-O {[%emt 0:00:08]} 9. Be2 {[%emt 0:00:01]} cxd4 {[%emt 0:00:00]} 10. cxd4 {[%emt 0:00:00]} Qa5+ {[%emt 0:00:00]} 11. Qd2 {[%emt 0:00:00]} Qxd2+ {[%emt 0:00:11]} 12. Kxd2 {[%emt 0:00:07]} e6 {[%emt 0:00:19]} 13. Bb5 {[%emt 0:01:10]} a6 {[%emt 0:00:44]} 14. Bd3 {[%emt 0:00:00]} Rd8 {[%emt 0:01:01]} 15. e5 {[%emt 0:03:50]} Nc6 {[%emt 0:02:20]} 16. Bb2 {[%emt 0:00:59]} Bd7 {[%emt 0:02:27]} 17. Bc3 {[%emt 0:00:42]} b5 {[%emt 0:01:15]} 18. h4 {[%emt 0:00:19]} Bf8 {[%emt 0:00:54]} 19. h5 {[%emt 0:00:18]} b4 {[%emt 0:01:17]} 20. Bb2 {[%emt 0:00:00]} Na5 {[%emt 0:01:47]} 21. hxg6 {[%emt 0:00:08]} hxg6 {[%emt 0:00:17]} 22. Ng5 {[%emt 0:01:15]} Bb5 {[%emt 0:02:23]} 23. Ne4 {[%emt 0:00:58]} Be7 {[%emt 0:01:02]} 24. Nf6+ {[%emt 0:00:35]} Bxf6 {[%emt 0:00:52]} 25. exf6 {[%emt 0:00:00]} Bxd3 {[%emt 0:01:00]} 26. Kxd3 {[%emt 0:00:02]} Nc6 {[%emt 0:00:33]} 27. Ke4 {[%emt 0:00:51]} Nb8 {[%emt 0:00:08]} 28. Bc1 {[%emt 0:01:26]} Rd5 {[%emt 0:00:19]} 29. Bh6 {[%emt 0:00:15]} Nc6 {[%emt 0:00:15]} 30. Bg7 {[%emt 0:00:00]} Rh5 {[%emt 0:00:17]} 31. g4 {[%emt 0:00:00]} 1-0

[Event "Dvorkovich Memorial Rapid 2018"]
[Site "Taganrog"]
[Date "2018.01.13"]
[Round "6.23"]
[White "Bykov, Egor"]
[Black "Garkushin, Artem"]
[Result "1-0"]
[ECO "E91"]
[WhiteElo "2346"]
[BlackElo "2088"]
[Annotator "NA"]
[PlyCount "80"]
[EventDate "2018.??.??"]
[EventType "swiss"]
[EventCountry "RUS"]
[SourceTitle "playchess.com"]
[Source "ChessBase"]
[SourceQuality "1"]
[TimeControl "900+10"]

1. d4 {[%emt 0:00:00]} Nf6 {[%emt 0:00:13]} 2. c4 {[%emt 0:00:01]} c5 {[%emt 0:00:04]} 3. d5 {[%emt 0:00:00]} g6 {[%emt 0:00:02]} 4. Nc3 {[%emt 0:00:02]} Bg7 {[%emt 0:00:00]} 5. Nf3 {[%emt 0:00:27]} O-O {[%emt 0:00:03]} 6. e4 {[%emt 0:00:18]} d6 {[%emt 0:00:05]} 7. h3 {[%emt 0:00:45]} e6 {[%emt 0:00:01]} 8. Be2 {[%emt 0:00:20]} exd5 {[%emt 0:00:01]} 9. exd5 {[%emt 0:00:08]} a6 {[%emt 0:00:10]} 10. a4 {[%emt 0:00:47]} Re8 {[%emt 0:00:07]} 11. O-O {[%emt 0:00:04]} Nbd7 {[%emt 0:01:09]} 12. Re1 {[%emt 0:01:13]} Ne4 {[%emt 0:00:25]} 13. Nxe4 {[%emt 0:00:55]} Rxe4 {[%emt 0:00:03]} 14. Qc2 {[%emt 0:01:11]} Nf6 {[%emt 0:00:12]} 15. Bg5 {[%emt 0:00:45]} Bf5 {[%emt 0:00:23]} 16. Bd3 {[%emt 0:02:02]} Rxe1+ {[%emt 0:00:10]} 17. Rxe1 {[%emt 0:00:01]} Bxd3 {[%emt 0:00:03]} 18. Qxd3 {[%emt 0:00:02]} Qd7 {[%emt 0:00:07]} 19. b3 {[%emt 0:00:48]} Re8 {[%emt 0:00:09]} 20. Rxe8+ {[%emt 0:03:16]} Qxe8 {[%emt 0:01:22]} 21. Kf1 {[%emt 0:00:28]} Ne4 {[%emt 0:01:19]} 22. Qe3 {[%emt 0:00:37]} f5 {[%emt 0:00:03]} 23. Bf4 {[%emt 0:00:16]} b5 {[%emt 0:00:13]} 24. axb5 {[%emt 0:01:30]} axb5 {[%emt 0:00:01]} 25. Ng5 {[%emt 0:00:28]} Bd4 {[%emt 0:00:31]} 26. Nxe4 {[%emt 0:00:15]} fxe4 {[%emt 0:00:13]} 27. Qe2 {[%emt 0:00:37]} bxc4 {[%emt 0:00:15]} 28. bxc4 {[%emt 0:00:28]} Qe7 {[%emt 0:00:28]} 29. g4 {[%emt 0:00:54]} Kf7 {[%emt 0:00:25]} 30. Kg2 {[%emt 0:00:24]} Kg8 {[%emt 0:01:08]} 31. Kf1 {[%emt 0:00:39]} Kf7 {[%emt 0:00:05]} 32. Qe1 {[%emt 0:00:29]} Kg8 {[%emt 0:00:25]} 33. Qb1 {[%emt 0:00:10]} Kf7 {[%emt 0:00:33]} 34. Ke2 {[%emt 0:00:10]} Be5 {[%emt 0:01:03]} 35. Be3 {[%emt 0:00:07]} Bd4 {[%emt 0:00:10]} 36. Bf4 {[%emt 0:00:03]} Be5 {[%emt 0:00:07]} 37. Bd2 {[%emt 0:00:16]} Bd4 {[%emt 0:00:10]} 38. Bf4 {[%emt 0:00:14]} Be5 {[%emt 0:00:05]} 39. Bd2 {[%emt 0:00:03]} Bd4 {[%emt 0:00:01]} 40. g5 {[%emt 0:00:07]} Qe5 1-0

[Event "Dvorkovich Memorial Rapid 2018"]
[Site "Taganrog"]
[Date "2018.01.13"]
[Round "6.25"]
[White "Kotenko, Pavel"]
[Black "Simonyan, Grigori"]
[Result "0-1"]
[ECO "B81"]
[WhiteElo "2403"]
[BlackElo "2075"]
[Annotator "NA"]
[PlyCount "56"]
[EventDate "2018.??.??"]
[EventType "swiss"]
[EventCountry "RUS"]
[SourceTitle "playchess.com"]
[Source "ChessBase"]
[SourceQuality "1"]
[TimeControl "900+10"]

1. e4 {[%emt 0:15:00]} c5 {[%emt 0:15:10]} 2. Nf3 {[%emt 0:00:10]} e6 {[%emt 0:00:10]} 3. d4 {[%emt 0:00:10]} cxd4 {[%emt 0:00:10]} 4. Nxd4 {[%emt 0:00:10]} Nf6 {[%emt 0:00:10]} 5. Nc3 {[%emt 0:00:00]} d6 {[%emt 0:00:10]} 6. g4 {[%emt 0:00:20]} h6 {[%emt 0:00:10]} 7. Bg2 {[%emt 0:00:10]} a6 {[%emt 0:00:10]} 8. h3 {[%emt 0:00:10]} Nc6 {[%emt 0:00:10]} 9. Be3 {[%emt 0:00:10]} g5 {[%emt 0:00:10]} 10. Qe2 {[%emt 0:00:10]} Bd7 {[%emt 0:00:10]} 11. O-O-O {[%emt 0:00:10]} Rc8 {[%emt 0:00:10]} 12. Nxc6 {[%emt 0:00:10]} Bxc6 {[%emt 0:00:10]} 13. h4 {[%emt 0:00:10]} gxh4 {[%emt 0:00:10]} 14. f4 {[%emt 0:00:10]} Qa5 {[%emt 0:00:10]} 15. Rxh4 {[%emt 0:00:10]} b5 {[%emt 0:00:10]} 16. Bd4 {[%emt 0:00:10]} Bg7 {[%emt 0:00:10]} 17. Kb1 {[%emt 0:00:10]} b4 {[%emt 0:00:10]} 18. Nd5 {[%emt 0:00:10]} Bb5 {[%emt 0:00:10]} 19. Nxf6+ {[%emt 0:00:10]} Bxf6 {[%emt 0:00:10]} 20. Qd2 {[%emt 0:00:10]} e5 {[%emt 0:00:10]} 21. fxe5 {[%emt 0:00:10]} Bxh4 {[%emt 0:00:10]} 22. exd6 {[%emt 0:00:10]} Bg5 {[%emt 0:00:10]} 23. Qf2 {[%emt 0:00:10]} Rg8 {[%emt 0:00:10]} 24. e5 {[%emt 0:00:10]} Bd7 {[%emt 0:00:10]} 25. Bb6 {[%emt 0:00:10]} Qb5 {[%emt 0:00:10]} 26. Bd5 {[%emt 0:00:10]} Rf8 {[%emt 0:00:10]} 27. e6 {[%emt 0:00:10]} fxe6 {[%emt 0:00:10]} 28. Qd4 {[%emt 0:00:10]} Qxd5 {[%emt 0:00:10]} 0-1

[Event "Dvorkovich Memorial Rapid 2018"]
[Site "Taganrog"]
[Date "2018.01.13"]
[Round "6.26"]
[White "Getman, Tatyana"]
[Black "Chernyavsky, Alexander"]
[Result "0-1"]
[ECO "E92"]
[WhiteElo "2106"]
[BlackElo "2326"]
[Annotator "NA"]
[PlyCount "53"]
[EventDate "2018.??.??"]
[EventType "swiss"]
[EventCountry "RUS"]
[SourceTitle "playchess.com"]
[Source "ChessBase"]
[SourceQuality "1"]
[TimeControl "900+10"]

1. d4 {[%emt 0:00:00]} Nf6 {[%emt 0:00:00]} 2. c4 {[%emt 0:00:00]} g6 {[%emt 0:00:01]} 3. Nc3 {[%emt 0:00:00]} Bg7 {[%emt 0:00:01]} 4. e4 {[%emt 0:00:00]} O-O {[%emt 0:00:00]} 5. Nf3 {[%emt 0:00:00]} d6 {[%emt 0:00:00]} 6. d5 {[%emt 0:00:00]} e5 {[%emt 0:00:05]} 7. Be2 {[%emt 0:00:04]} a5 {[%emt 0:00:15]} 8. Qc2 {[%emt 0:00:25]} Na6 {[%emt 0:00:00]} 9. h3 {[%emt 0:00:35]} Nh5 {[%emt 0:00:50]} 10. O-O {[%emt 0:01:49]} f5 {[%emt 0:00:43]} 11. exf5 {[%emt 0:00:02]} Bxf5 {[%emt 0:00:04]} 12. Qd1 {[%emt 0:00:59]} Nf4 {[%emt 0:00:04]} 13. Bxf4 {[%emt 0:00:23]} exf4 {[%emt 0:00:00]} 14. Nd4 {[%emt 0:00:30]} Bxd4 {[%emt 0:05:24]} 15. Qxd4 {[%emt 0:00:02]} Qg5 {[%emt 0:01:45]} 16. Ne4 {[%emt 0:00:39]} Bxe4 {[%emt 0:00:11]} 17. Qxe4 {[%emt 0:00:01]} Rae8 {[%emt 0:00:03]} 18. Qf3 {[%emt 0:00:27]} Qe5 {[%emt 0:00:00]} 19. Bd3 {[%emt 0:02:56]} Qxb2 {[%emt 0:00:00]} 20. Rab1 {[%emt 0:00:13]} Qxa2 {[%emt 0:00:53]} 21. Rxb7 {[%emt 0:00:16]} Re7 {[%emt 0:00:20]} 22. Rbb1 {[%emt 0:05:42]} Nc5 {[%emt 0:00:24]} 23. Rfe1 {[%emt 0:01:31]} Rxe1+ {[%emt 0:00:25]} 24. Rxe1 {[%emt 0:00:01]} Qd2 {[%emt 0:00:15]} 25. Rd1 {[%emt 0:00:16]} Qc3 {[%emt 0:00:00]} 26. h4 {[%emt 0:00:40]} Qe5 {[%emt 0:00:11]} 27. Bc2 {[%emt 0:00:47]} 0-1

[Event "Dvorkovich Memorial Rapid 2018"]
[Site "Taganrog"]
[Date "2018.01.14"]
[Round "8"]
[White "Kotenko, Pavel"]
[Black "Garkushin, Artem"]
[Result "1-0"]
[ECO "C11"]
[WhiteElo "2403"]
[BlackElo "2088"]
[Annotator "ChessBase"]
[PlyCount "64"]
[EventDate "2018.??.??"]
[EventType "swiss"]
[EventCountry "RUS"]
[SourceTitle "playchess.com"]
[Source "ChessBase"]
[SourceQuality "1"]
[TimeControl "900+10"]

1. e4 {[%emt 0:00:00]} e6 {[%emt 0:00:05]} 2. d4 {[%emt 0:00:00]} d5 {[%emt 0:00:02]} 3. Nc3 {[%emt 0:00:00]} Nf6 {[%emt 0:00:01]} 4. e5 {[%emt 0:00:00]} Nfd7 {[%emt 0:00:00]} 5. f4 {[%emt 0:00:02]} c5 {[%emt 0:00:03]} 6. Nf3 {[%emt 0:00:02]} Nc6 {[%emt 0:00:01]} 7. Be3 {[%emt 0:00:02]} Qb6 {[%emt 0:00:02]} 8. Na4 {[%emt 0:00:06]} Qa5+ {[%emt 0:00:01]} 9. c3 {[%emt 0:00:03]} c4 {[%emt 0:00:00]} 10. b4 {[%emt 0:01:21]} Qc7 {[%emt 0:00:00]} 11. Nb2 {[%emt 0:00:20]} h5 {[%emt 0:00:46]} 12. Be2 {[%emt 0:00:29]} Ne7 {[%emt 0:00:01]} 13. O-O {[%emt 0:00:23]} Nf5 {[%emt 0:00:12]} 14. Bf2 {[%emt 0:00:13]} Be7 {[%emt 0:00:10]} 15. Qd2 {[%emt 0:00:14]} b5 {[%emt 0:01:05]} 16. a4 {[%emt 0:00:19]} Ba6 {[%emt 0:00:02]} 17. Nd1 {[%emt 0:01:31]} bxa4 {[%emt 0:00:14]} 18. Rxa4 {[%emt 0:00:04]} Bb5 {[%emt 0:00:07]} 19. Ra5 {[%emt 0:00:19]} Qc6 {[%emt 0:00:05]} 20. Ne3 {[%emt 0:00:23]} g6 {[%emt 0:00:03]} 21. Nxf5 {[%emt 0:00:10]} gxf5 {[%emt 0:00:03]} 22. Bh4 {[%emt 0:00:13]} Nf8 {[%emt 0:02:08]} 23. Bxe7 {[%emt 0:01:17]} Kxe7 {[%emt 0:00:02]} 24. Ne1 {[%emt 0:01:13]} h4 {[%emt 0:00:25]} 25. Nc2 {[%emt 0:00:10]} Ng6 {[%emt 0:02:18]} 26. Rfa1 {[%emt 0:00:57]} a6 {[%emt 0:00:38]} 27. Na3 {[%emt 0:00:03]} Kd7 {[%emt 0:02:35]} 28. Kf2 {[%emt 0:00:33]} Kc7 {[%emt 0:00:15]} 29. Ke3 {[%emt 0:00:14]} Kb7 {[%emt 0:01:36]} 30. Qa2 {[%emt 0:00:42]} Ba4 {[%emt 0:01:34]} 31. Nxc4 {[%emt 0:00:51]} dxc4 {[%emt 0:00:10]} 32. Bf3 {[%emt 0:00:31]} Bb5 {[%emt 0:00:09]} 1-0

[Event "Dvorkovich Memorial Rapid 2018"]
[Site "Taganrog"]
[Date "2018.01.14"]
[Round "8"]
[White "Vastrukhin, Oleg"]
[Black "Murzin, Volodar"]
[Result "1-0"]
[ECO "A49"]
[WhiteElo "2398"]
[BlackElo "2268"]
[Annotator "ChessBase"]
[PlyCount "119"]
[EventDate "2018.??.??"]
[EventType "swiss"]
[EventCountry "RUS"]
[SourceTitle "playchess.com"]
[Source "ChessBase"]
[SourceQuality "1"]
[TimeControl "900+10"]

1. Nf3 {[%emt 0:00:00]} Nf6 {[%emt 0:00:00]} 2. g3 {[%emt 0:00:00]} g6 {[%emt 0:00:02]} 3. Bg2 {[%emt 0:00:00]} Bg7 {[%emt 0:00:00]} 4. O-O {[%emt 0:00:00]} O-O {[%emt 0:00:02]} 5. d4 {[%emt 0:00:00]} d6 {[%emt 0:00:00]} 6. a4 {[%emt 0:00:00]} Nbd7 {[%emt 0:00:20]} 7. a5 {[%emt 0:00:01]} a6 {[%emt 0:00:03]} 8. Re1 {[%emt 0:00:00]} Rb8 {[%emt 0:00:54]} 9. e4 {[%emt 0:00:14]} e5 {[%emt 0:00:09]} 10. dxe5 {[%emt 0:00:02]} Nxe5 {[%emt 0:00:26]} 11. Nxe5 {[%emt 0:00:04]} dxe5 {[%emt 0:00:13]} 12. Nc3 {[%emt 0:00:18]} b5 {[%emt 0:00:31]} 13. Be3 {[%emt 0:01:34]} Be6 {[%emt 0:01:19]} 14. Bc5 {[%emt 0:00:53]} Re8 {[%emt 0:00:10]} 15. Qe2 {[%emt 0:00:17]} Nd7 {[%emt 0:00:48]} 16. Rad1 {[%emt 0:00:32]} b4 {[%emt 0:02:43]} 17. Na4 {[%emt 0:00:17]} Rb5 {[%emt 0:00:18]} 18. b3 {[%emt 0:00:27]} Qc8 {[%emt 0:00:45]} 19. Qe3 {[%emt 0:02:37]} Nxc5 {[%emt 0:00:49]} 20. Nxc5 {[%emt 0:00:02]} Rxa5 {[%emt 0:00:12]} 21. Nxe6 {[%emt 0:00:10]} Qxe6 {[%emt 0:00:06]} 22. Bf1 {[%emt 0:00:13]} Qb6 {[%emt 0:03:22]} 23. Bc4 {[%emt 0:00:24]} Qxe3 {[%emt 0:01:09]} 24. Rxe3 {[%emt 0:00:03]} Rf8 {[%emt 0:00:45]} 25. Rd7 {[%emt 0:00:15]} Rc5 {[%emt 0:00:18]} 26. Rf3 {[%emt 0:00:58]} Kh8 {[%emt 0:00:00]} 27. Rfxf7 {[%emt 0:01:06]} Rxf7 {[%emt 0:00:04]} 28. Rxf7 {[%emt 0:00:11]} a5 {[%emt 0:00:03]} 29. Re7 {[%emt 0:00:03]} Bf8 {[%emt 0:00:38]} 30. Re8 {[%emt 0:00:19]} Kg7 {[%emt 0:00:01]} 31. Ra8 {[%emt 0:00:00]} Bd6 {[%emt 0:00:18]} 32. Kg2 {[%emt 0:00:05]} Kf6 {[%emt 0:00:26]} 33. h4 {[%emt 0:00:11]} h5 {[%emt 0:01:45]} 34. Kf3 {[%emt 0:00:06]} g5 {[%emt 0:00:10]} 35. hxg5+ {[%emt 0:01:02]} Kxg5 {[%emt 0:00:01]} 36. Ke3 {[%emt 0:00:00]} Kf6 {[%emt 0:00:13]} 37. f4 {[%emt 0:00:28]} h4 {[%emt 0:00:06]} 38. f5 {[%emt 0:00:00]} hxg3 {[%emt 0:00:04]} 39. Kf3 {[%emt 0:00:10]} Rc6 {[%emt 0:00:51]} 40. Kxg3 {[%emt 0:00:01]} Rb6 {[%emt 0:00:12]} 41. Kf3 {[%emt 0:00:30]} a4 {[%emt 0:00:06]} 42. bxa4 {[%emt 0:00:00]} Rc6 {[%emt 0:00:01]} 43. Bb3 {[%emt 0:00:12]} Rc3+ {[%emt 0:00:11]} 44. Ke2 {[%emt 0:00:37]} Bc5 {[%emt 0:00:00]} 45. Ra6+ {[%emt 0:00:02]} Bd6 {[%emt 0:00:15]} 46. a5 {[%emt 0:00:06]} Rh3 {[%emt 0:00:06]} 47. Ra8 {[%emt 0:01:34]} Bc5 {[%emt 0:00:31]} 48. Rc8 {[%emt 0:00:11]} Re3+ {[%emt 0:00:06]} 49. Kd2 {[%emt 0:00:01]} Rxe4 {[%emt 0:00:08]} 50. Rxc7 {[%emt 0:00:00]} Bd4 {[%emt 0:00:01]} 51. Rf7+ {[%emt 0:00:04]} Kg5 {[%emt 0:00:01]} 52. a6 {[%emt 0:00:02]} Kf4 {[%emt 0:00:32]} 53. a7 {[%emt 0:02:43]} Bc3+ {[%emt 0:00:03]} 54. Kd3 {[%emt 0:00:15]} Rd4+ {[%emt 0:00:12]} 55. Ke2 {[%emt 0:00:00]} Rd2+ {[%emt 0:00:03]} 56. Kf1 {[%emt 0:00:05]} Rd1+ {[%emt 0:00:09]} 57. Kg2 {[%emt 0:00:02]} Ra1 {[%emt 0:00:03]} 58. Bd5 {[%emt 0:00:02]} b3 {[%emt 0:00:04]} 59. cxb3 {[%emt 0:00:37]} Ra2+ {[%emt 0:00:01]} 60. Kh3 {[%emt 0:00:09]} 1-0

[Event "Dvorkovich Memorial Rapid 2018"]
[Site "Taganrog"]
[Date "2018.01.14"]
[Round "8"]
[White "Tomilova, Elena"]
[Black "Pshmahov, Osman"]
[Result "1-0"]
[ECO "A30"]
[WhiteElo "2331"]
[BlackElo "2103"]
[Annotator "ChessBase"]
[PlyCount "137"]
[EventDate "2018.??.??"]
[EventType "swiss"]
[EventCountry "RUS"]
[SourceTitle "playchess.com"]
[Source "ChessBase"]
[SourceQuality "1"]
[TimeControl "900+10"]

1. c4 {[%emt 0:00:00]} Nf6 {[%emt 0:00:11]} 2. g3 {[%emt 0:00:01]} e6 {[%emt 0:00:02]} 3. Nf3 {[%emt 0:00:06]} d5 {[%emt 0:00:02]} 4. b3 {[%emt 0:00:03]} g6 {[%emt 0:00:09]} 5. Bb2 {[%emt 0:00:04]} Bg7 {[%emt 0:00:01]} 6. Bg2 {[%emt 0:00:06]} O-O {[%emt 0:00:04]} 7. O-O {[%emt 0:00:05]} b6 {[%emt 0:00:16]} 8. d3 {[%emt 0:00:16]} Bb7 {[%emt 0:00:03]} 9. Nbd2 {[%emt 0:00:04]} c5 {[%emt 0:00:08]} 10. cxd5 {[%emt 0:00:09]} exd5 {[%emt 0:00:52]} 11. d4 {[%emt 0:00:46]} Nfd7 {[%emt 0:00:17]} 12. Qb1 {[%emt 0:00:51]} Nc6 {[%emt 0:00:07]} 13. dxc5 {[%emt 0:00:09]} Bxb2 {[%emt 0:00:02]} 14. Qxb2 {[%emt 0:00:01]} bxc5 {[%emt 0:00:02]} 15. Rfd1 {[%emt 0:00:26]} Qf6 {[%emt 0:00:03]} 16. Qxf6 {[%emt 0:00:30]} Nxf6 {[%emt 0:00:01]} 17. Rac1 {[%emt 0:00:01]} Nd7 {[%emt 0:00:26]} 18. e4 {[%emt 0:03:33]} d4 {[%emt 0:01:34]} 19. Bh3 {[%emt 0:00:03]} f5 {[%emt 0:01:33]} 20. exf5 {[%emt 0:00:16]} gxf5 {[%emt 0:00:01]} 21. Nh4 {[%emt 0:00:41]} Ne7 {[%emt 0:00:08]} 22. Re1 {[%emt 0:00:40]} Ng6 {[%emt 0:02:22]} 23. Nxf5 {[%emt 0:00:29]} Nde5 {[%emt 0:00:37]} 24. Ne7+ {[%emt 0:00:33]} Kh8 {[%emt 0:01:33]} 25. Nxg6+ {[%emt 0:00:04]} Nxg6 {[%emt 0:00:01]} 26. Rxc5 {[%emt 0:00:05]} Rfe8 {[%emt 0:00:10]} 27. Rcc1 {[%emt 0:01:25]} Ne5 {[%emt 0:00:18]} 28. Bg2 {[%emt 0:02:54]} Bxg2 {[%emt 0:00:13]} 29. Kxg2 {[%emt 0:00:01]} Nd3 {[%emt 0:00:01]} 30. Rxe8+ {[%emt 0:00:01]} Rxe8 {[%emt 0:00:00]} 31. Rd1 {[%emt 0:00:06]} Re2 {[%emt 0:00:13]} 32. Ne4 {[%emt 0:00:37]} Ne5 {[%emt 0:00:19]} 33. Rxd4 {[%emt 0:00:16]} Rxa2 {[%emt 0:00:03]} 34. h3 {[%emt 0:01:01]} Rb2 {[%emt 0:01:26]} 35. Rd5 {[%emt 0:00:20]} Nc6 {[%emt 0:00:18]} 36. Rd7 {[%emt 0:00:24]} Re2 {[%emt 0:01:11]} 37. Rc7 {[%emt 0:00:41]} Rxe4 {[%emt 0:00:50]} 38. Rxc6 {[%emt 0:00:01]} Rb4 {[%emt 0:00:01]} 39. Ra6 {[%emt 0:00:10]} Rxb3 {[%emt 0:00:19]} 40. Rxa7 {[%emt 0:00:02]} Kg8 {[%emt 0:00:02]} 41. g4 {[%emt 0:00:06]} h5 {[%emt 0:00:11]} 42. Ra5 {[%emt 0:00:52]} hxg4 {[%emt 0:00:11]} 43. hxg4 {[%emt 0:00:04]} Kg7 {[%emt 0:00:01]} 44. Ra6 {[%emt 0:00:09]} Kf7 {[%emt 0:00:01]} 45. f3 {[%emt 0:00:02]} Kg7 {[%emt 0:00:01]} 46. Kg3 {[%emt 0:00:02]} Kf7 {[%emt 0:00:01]} 47. g5 {[%emt 0:00:04]} Kg7 {[%emt 0:00:07]} 48. Kg4 {[%emt 0:00:03]} Rb4+ {[%emt 0:00:26]} 49. f4 {[%emt 0:00:04]} Rc4 {[%emt 0:00:00]} 50. Kf5 {[%emt 0:00:46]} Rc5+ {[%emt 0:00:04]} 51. Ke4 {[%emt 0:00:03]} Rc4+ {[%emt 0:00:02]} 52. Ke5 {[%emt 0:00:12]} Rc5+ {[%emt 0:00:07]} 53. Kd4 {[%emt 0:00:06]} Rb5 {[%emt 0:00:01]} 54. Ke4 {[%emt 0:00:01]} Rb4+ {[%emt 0:00:05]} 55. Kf3 {[%emt 0:00:02]} Rb3+ {[%emt 0:00:02]} 56. Kg4 {[%emt 0:00:01]} Rb4 {[%emt 0:00:01]} 57. Re6 {[%emt 0:00:13]} Kf7 {[%emt 0:00:01]} 58. Rf6+ {[%emt 0:00:16]} Kg7 {[%emt 0:00:11]} 59. Rd6 {[%emt 0:00:37]} Kf7 {[%emt 0:00:13]} 60. Kf5 {[%emt 0:00:07]} Rb5+ {[%emt 0:00:01]} 61. Ke4 {[%emt 0:00:03]} Rb1 {[%emt 0:00:20]} 62. g6+ {[%emt 0:00:43]} Kg7 {[%emt 0:00:43]} 63. Kf5 {[%emt 0:00:46]} Rb5+ {[%emt 0:00:11]} 64. Kg4 {[%emt 0:00:04]} Rb1 {[%emt 0:00:02]} 65. Kg5 {[%emt 0:00:14]} Rg1+ {[%emt 0:00:22]} 66. Kf5 {[%emt 0:00:03]} Kh6 {[%emt 0:00:29]} 67. Re6 {[%emt 0:00:20]} Rg2 {[%emt 0:00:22]} 68. Re7 {[%emt 0:00:19]} Rxg6 {[%emt 0:01:01]} 69. Re6 {[%emt 0:00:02]} 1-0